Department Family,Entity,Date,Expense Type,Expense Area,Supplier ,Amount,Description,Expenditure Type
Land Registry,Land Registry,29-Jul-13,Transport Hire of Cars and Vans,Central Facilities Management Team,IN-DRIVE,811.25,Invoice Nos. 1705818 (352.30) Marilyn Dyas & 1706024 (458.95) Nick Eccles. Recharge for damage repair to hire cars.   ,Administration
Land Registry,Land Registry,29-Jul-13,Transport Hire of Cars and Vans,Central Facilities Management Team,IN-DRIVE,982.49,Invoice Nos. 1705740 (708.54) David Howard & 1705829 (273.95) Helen Wallis. Recharge for damage repair to hire cars.  ,Administration
Land Registry,Land Registry,30-Jul-13,IS Training,Governance & Policy,CRESTA GROUP LTD,864,Clare Skews Advanced Performance October 2013,Administration
Land Registry,Land Registry,30-Jul-13,External Conference Seminars and Away Days,Internal Solutions Group,UNICOM SEMINARS LTD,1535.04,"ITSG staff, Donna Clark, John James, Alison Queen and Lorraine Rennie to attend the Agile Business Conference, in London, 9th-10th October 2013.",Administration
Land Registry,Land Registry,30-Jul-13,Transport Hire of Cars and Vans,Central Facilities Management Team,IN-DRIVE,689.59,Invoice Nos. 1706108 (164.00) Tiffany Ireland & 1706109 (525.59) Jo Elliott. Recharge for damage repair to hire cars. ,Administration
Land Registry,Land Registry,30-Jul-13,Transport Hire of Cars and Vans,Central Facilities Management Team,IN-DRIVE,778,Invoice Nos. 1706112 (164.00) Roger Wolkinson & 1706116 (614.00) Lorraine Spicer. Recharge for damage repair to hire cars.       ,Administration
Land Registry,Land Registry,30-Jul-13,Household Expenses Goods,Croydon Office,BOARDSDIRECT.CO.UK,503.04,mobile easel,Administration
Land Registry,Land Registry,30-Jul-13,Household Expenses Goods,Croydon Office,BOARDSDIRECT.CO.UK,900,mobile easel,Administration
Land Registry,Land Registry,30-Jul-13,Household Expenses Goods,Croydon Office,BOARDSDIRECT.CO.UK,900,mobile easel,Administration
Land Registry,Land Registry,30-Jul-13,Computer Equipment Maintenance,Governance & Policy,TENABLE NETWORK SECURITY,1009.65,1 Year Nessus ProfessionalFeed Subscription (New)(Reprise of similar order made last month),Administration
Land Registry,Land Registry,01-Aug-13,External Conference Seminars and Away Days,Internal Solutions Group,UNICOM SEMINARS LTD,1535.04,"ITSG, OCIO and Corporate Procurement staff, Clive Benton, Kevin Rowley,Simon Hodges and Mike Ferguson to attend the Agile Business Conference, in in London, 9th-10th October 2013.",Administration
Land Registry,Land Registry,01-Aug-13,External Conference Seminars and Away Days,Internal Solutions Group,UNICOM SEMINARS LTD,767.52,"ITSG, OCIO and Corporate Procurement staff, Clive Benton, Kevin Rowley,Simon Hodges and Mike Ferguson to attend the Agile Business Conference, in in London, 9th-10th October 2013.",Administration
Land Registry,Land Registry,01-Aug-13,External Conference Seminars and Away Days,Internal Solutions Group,SKILLS MATTER LTD,900,"ITSG staff, Paul Bishop, Julia Dart, Rose O'Dwyer, Dave O'Gorman, Heather Poole and Gail Rosalez to attend the Agile Testing and Behaviour-Driven Development Exchange Conference, in London, 22nd November 2013.",Administration
Land Registry,Land Registry,01-Aug-13,External Conference Seminars and Away Days,IS Service Delivery,UNICOM SEMINARS LTD,1535.04,"ISSD staff, Ian Ames, Hayley Butler, Barrie Childs and Jon Mudford to attend the Agile Business Conference, in London, 9th-10th October 2013.",Administration
Land Registry,Land Registry,01-Aug-13,External Conference Seminars and Away Days,IS Service Delivery,DATACENTREDYNAMICS,960,'Converged' conference attendance for Paul Atkin & Lea Spiller,Administration
Land Registry,Land Registry,01-Aug-13,Reprographic Copy Costs,Telford Office,TOSHIBA TEC UK,654.88,Click through copy costs.,Administration
Land Registry,Land Registry,01-Aug-13,Reprographic Copy Costs,Telford Office,TOSHIBA TEC UK,621.57,Click through copy costs,Administration
Land Registry,Land Registry,06-Aug-13,Transport Hire of Cars and Vans,Central Facilities Management Team,IN-DRIVE,745.2,"Invoice Nos. 1100035 (313.20), 1100055 (32.40) & 1100065 (399.60). Company Car Driver Assessments: Licence checking x 46 & Risk assessments x 46.     ",Administration
Land Registry,Land Registry,06-Aug-13,Telephone Costs,Hull Office,KINGSTON COMMS,541.75,"Invoice No. BUS0000312578. Telephone line rental charges for the Nursery in Grey Street, Hull for the period: 01/08/13 to 31/10/13. Payment ref:2029180941.       ",Administration
Land Registry,Land Registry,06-Aug-13,Computer Equipment Non HP Licences,IS Service Delivery,TRUSTMARQUE SOLS LTD,610.51,MR 1479848 Adobe Acrobat Professional V11 upgrade x4 licences,Administration
Land Registry,Land Registry,07-Aug-13,Travel & Subsistence Overseas Travel,Chief Executive's Office,PRIME STRATEGIES INC,608.85,Registration for Ed Lester for Land Title Conference 2013 in Vancouver,Administration
Land Registry,Land Registry,08-Aug-13,Lawyers Training costs,National Lawyer Training,CENTRAL LAW,594,T. Dove/CLT Certificate in Civil Litigation Procedure,Administration
Land Registry,Land Registry,08-Aug-13,Reprographic Purchases,Plymouth Office,WWW.PLOT-IT.CO.UK,511.14,Ink cartridges for OCE scanner / printer,Administration
Land Registry,Land Registry,08-Aug-13,External Photocopying costs,Wales Office,TOSHIBA TEC UK,615.88,Copier readings,Administration
Land Registry,Land Registry,12-Aug-13,Reprographic Purchases,Central Facilities Management Team,CANON UK LTD,603.66,Invoice 8049290 printheads,Administration
Land Registry,Land Registry,12-Aug-13,Travel & Subsistence General Duty,Chief Executive's Office,LONDON MIDLAND TIC,900.9,Monthly rail ticket to London,Administration
Land Registry,Land Registry,12-Aug-13,Travel & Subsistence General Duty,Director of Legal Services,JURYS INN CROYDON,1050,GPC Lawyer Training Jury's Inn CR,Administration
Land Registry,Land Registry,12-Aug-13,Computer Equipment Non HP Licences,Learning and Development,TRUSTMARQUE SOLS LTD,571.14,MR 1474080 Prezi Pro x3 licences,Administration
Land Registry,Land Registry,13-Aug-13,Other External Training,Learning and Development,OEE CONSULTING LTD,500,Part payment of Lean Compentency System training Level 1b - Lean Practitioner 3 day course from 10/09/13 in London for Deborah Pittock (part payment to enable payment to be made by GPC),Administration
Land Registry,Land Registry,13-Aug-13,Other External Training,Learning and Development,OEE CONSULTING LTD,574,Part payment of Lean Compentency System training Level 1b - Lean Practitioner 3 day course from 10/09/13 in London for Deborah Pittock (part payment to enable payment to be made by GPC),Administration
Land Registry,Land Registry,13-Aug-13,External Conference Seminars and Away Days,Research & Data Mining,GOVNET COMMUNICATI,663,Identity Assurance Conf,Administration
Land Registry,Land Registry,15-Aug-13,External Conference Seminars and Away Days,Governance & Policy,UNICOM SEMINARS LTD,725.7,Sue Wright and Simon Hodges Conference 14 November 2013,Administration
Land Registry,Land Registry,15-Aug-13,Letter Post,Croydon Office,ROYAL MAIL GROUP,583.64,Response Service Plus Surchage,Administration
Land Registry,Land Registry,15-Aug-13,"Telecoms Purchases < 1,000 ",IS Service Delivery,C W C UK,607.28,Closure of account 424925,Administration
Land Registry,Land Registry,19-Aug-13,Professional Subscriptions,Governance & Policy,FAST CORPORATE SVS LTD,2544,Fast renewal subscription for 2013,Administration
Land Registry,Land Registry,20-Aug-13,Professional Subscriptions,Governance & Policy,WATSON & WALKER,691.76,"Subscription : Cheryl Watson's Tuning Letter ( Mark Bailey is LR licencee, fee $ 1,050 ).",Administration
Land Registry,Land Registry,20-Aug-13,Professional Subscriptions,Governance & Policy,SERVICEDESK INST.,731.85,"Subscription : Mark Farrin's renewal to the Service Desk Institute, period 1.8.13 to 31.7.14 .",Administration
Land Registry,Land Registry,20-Aug-13,Training Equipment Hire,Governance & Policy,WWW.UKOUG.ORG,1680,Oracel renewal subscription,Administration
Land Registry,Land Registry,20-Aug-13,Market Research,Commercial & Customer Strategy & Performance,SNAP SURVEYS LTD,838.8,Annual Subscription to Snap Plus - 3 user licence,Administration
Land Registry,Land Registry,21-Aug-13,Reprographic Purchases,Wales Office,CANON UK LTD,784.25,Ink Tank,Administration
Land Registry,Land Registry,21-Aug-13,Travel & Subsistence General Duty,LR Board & Board Chair,HAMPTON BY HILTON,1000,Hotel stay for TOM team w/c 19.08.13,Administration
Land Registry,Land Registry,22-Aug-13,Other External Training,HR,SYMPOSIUM EVENTS,718.8,Transforming the Organisation event,Administration
Land Registry,Land Registry,22-Aug-13,Other External Training,Learning and Development,OPP LIMITED,972,"MBTI & Teams course for Lynn Narramore and Wendy lewis on 13/08/13 at Milton Hill House, Steventon, Oxfordshire",Administration
Land Registry,Land Registry,23-Aug-13,Travel & Subsistence General Duty,LR Board & Board Chair,HAMPTON BY HILTON,988,Hotel stay for TOM team w/c 19.08.13,Administration
Land Registry,Land Registry,27-Aug-13,Reprographic Purchases,Coventry Office,CANON UK LTD,905.83,large oce copier inks,Administration
Land Registry,Land Registry,27-Aug-13,Marketing Services,Marketing Services Team,LONDON CHAMBER OF,744,Application for corporate membership of London Chamber of Commerce,Administration
